bitfinex/quotes_SOLUSD_20250130
["timestamp","ask_amount","ask_price","bid_price","bid_amount"]
[1738218216402,1.0,240.04,240.01,12.47652097]
[1738218219497,1.0,240.02,240.01,8.05924097]
[1738218219804,1.0,240.02,240.01,0.03]
[1738218223680,5.1663,240.02,240.01,0.03]
[1738218225905,13.19554097,240.02,240.01,0.03]
[1738218227803,43.44672497,240.02,240.01,0.0001]
[1738218229815,19.66984097,240.02,240.01,0.0001]
[1738218229987,11.6406,240.02,240.01,0.0001]
[1738218230184,1.0,240.02,240.01,0.0001]
[1738218230696,21.0,240.02,240.01,0.0001]
[1738218231807,40.18790006,240.02,240.01,0.0001]
[1738218233606,3.6125,239.92,239.9,0.03]
[1738218233784,32.48321006,239.91,239.9,0.03]
[1738218233986,2.0,239.85,239.82,0.03]
[1738218234308,10.02924097,239.85,239.82,0.03]
[1738218235825,14.87552606,239.85,239.82,0.03]
[1738218237526,38.90339006,239.85,239.82,0.03]
[1738218238113,14.87552606,239.85,239.82,0.03]
[1738218239023,14.19844097,239.85,239.82,0.03]
[1738218240905,14.87552606,239.85,239.82,0.03]
[1738218241415,38.65241006,239.85,239.82,0.03]
[1738218242391,14.19844097,239.85,239.82,0.03]
[1738218243515,14.87552606,239.85,239.82,0.03]
[1738218249105,15.00101606,239.85,239.82,0.03]
[1738218249415,53.80612497,239.83,239.82,0.03]
[1738218249602,54.48321006,239.83,239.82,0.03]
[1738218251511,58.65281006,239.83,239.82,0.03]
[1738218253209,34.87592606,239.83,239.82,0.03]
[1738218254212,58.65281006,239.83,239.82,0.03]
[1738218255801,58.77830006,239.83,239.82,0.03]
[1738218257939,58.90379006,239.83,239.82,0.03]
[1738218259224,58.90379006,239.83,239.76,0.03]
[1738218259225,2.0,239.77,239.76,0.03]
[1738218259422,10.02924097,239.77,239.76,0.03]
[1738218262242,14.87692606,239.77,239.76,0.03]
[1738218269531,24.776884,239.76,239.75,0.0001]
[1738218269734,2.0,239.68,239.67,0.03]
[1738218269907,10.02924097,239.68,239.67,0.03]
[1738218270312,10.70632606,239.68,239.67,0.03]
[1738218271337,10.02924097,239.68,239.67,0.03]
[1738218272240,14.20144097,239.68,239.67,0.03]
[1738218272540,37.97832497,239.68,239.67,0.03]
[1738218272840,38.65541006,239.68,239.67,0.03]
[1738218273407,39.78090006,239.68,239.67,0.0001]
[1738218274350,40.03188006,239.68,239.67,0.0001]
[1738218277354,40.15737006,239.68,239.67,0.0001]
[1738218281845,2.0,239.62,239.6,0.03]
[1738218282155,1.12549,239.61,239.6,0.03]
[1738218282329,24.902374,239.61,239.6,0.03]
[1738218283757,29.075774,239.61,239.6,0.03]
[1738218285482,29.201264,239.61,239.6,0.03]
[1738218286360,28.950284,239.61,239.6,0.0001]
[1738218286733,27.950284,239.61,239.6,0.0001]
[1738218292339,35.97952497,239.61,239.6,0.0001]
[1738218295165,8.02924097,239.61,239.6,0.0001]
[1738218295367,2.0,239.62,239.6,0.0001]
[1738218295739,2.0,239.62,239.6,8.02934097]
[1738218297141,2.0,239.62,239.6,0.0001]
[1738218297862,1.67708509,239.72,239.6,0.0001]
[1738218297863,0.3334,239.69,239.63,0.12549]
[1738218298067,0.3334,239.66,239.62,0.25098]
[1738218298967,0.3334,239.66,239.62,4.42408]
[1738218299140,0.3334,239.66,239.65,8.02924097]
[1738218300356,0.3334,239.66,239.63,8.02924097]
[1738218300558,0.3334,239.64,239.63,8.02924097]
[1738218309177,0.3964,239.64,239.63,12.20234097]
[1738218314981,0.3964,239.64,239.63,8.02924097]
[1738218315164,0.3964,239.64,239.63,12.20234097]
[1738218324193,0.3964,239.64,239.63,8.02924097]
[1738218329801,0.3964,239.64,239.62,0.03]
[1738218331090,0.3964,239.64,239.62,8.05924097]
[1738218332994,0.3964,239.64,239.62,12.23244097]
[1738218334290,0.3964,239.64,239.62,8.05924097]
[1738218334594,0.3964,239.64,239.62,0.03]
[1738218353417,0.3964,239.64,239.62,8.05924097]
[1738218353914,0.3964,239.64,239.62,12.23234097]
[1738218356110,0.3964,239.64,239.63,8.02924097]
[1738218356907,0.063,239.64,239.63,8.28022097]
[1738218357099,0.063,239.64,239.63,8.40571097]
[1738218358499,0.063,239.64,239.63,12.57881097]
[1738218358811,0.063,239.64,239.63,37.10695149]
[1738218360416,0.063,239.64,239.63,12.57881097]
[1738218367823,0.063,239.64,239.63,12.70430097]
[1738218368931,0.3334,239.72,239.64,0.50196]
[1738218369128,0.3334,239.72,239.71,8.02924097]
[1738218369532,0.063,239.74,239.71,8.02924097]
[1738218370136,0.063,239.74,239.71,12.20084097]
[1738218370630,0.3334,239.72,239.71,8.02924097]
[1738218371544,0.3334,239.72,239.69,12.20114097]
[1738218373928,0.3334,239.7,239.69,8.02924097]
[1738218376149,0.3334,239.72,239.69,12.20124097]
[1738218376733,0.3964,239.74,239.71,8.02924097]
[1738218378453,0.3964,239.74,239.71,12.20074097]
[1738218380664,0.3334,239.72,239.71,12.20074097]
[1738218381763,0.3334,239.72,239.7,8.02924097]
[1738218384164,0.3334,239.72,239.7,12.20104097]
[1738218389144,0.3334,239.72,239.68,12.20134097]
[1738218389348,0.3334,239.72,239.68,4.1721]
[1738218389548,0.3334,239.72,239.68,12.20134097]
[1738218391073,0.3334,239.72,239.69,8.02924097]
[1738218391372,0.3334,239.72,239.7,8.02924097]
[1738218391758,0.3334,239.72,239.69,8.02924097]
[1738218393271,0.3334,239.69,239.66,8.02924097]
[1738218393580,8.09224097,239.74,239.64,8.02924097]
[1738218393581,0.3334,239.67,239.64,8.02924097]
[1738218394472,0.3334,239.65,239.63,0.03]
[1738218394855,8.36264097,239.65,239.63,0.03]
[1738218395062,8.02924097,239.64,239.63,0.03]
[1738218395484,0.3334,239.65,239.63,0.03]
[1738218396483,4.1729,239.64,239.63,0.03]
[1738218396856,0.3334,239.65,239.63,0.03]
[1738218397574,4.5061,239.65,239.63,0.03]
[1738218401824,8.02924097,239.64,239.63,0.0001]
[1738218402084,0.3334,239.63,239.62,0.0001]
[1738218402255,9.03972606,239.63,239.62,0.0001]
[1738218403780,12.53574097,239.63,239.62,0.0001]
[1738218404469,13.21282606,239.63,239.62,0.0001]
[1738218406899,12.53574097,239.63,239.62,0.0001]
[1738218407211,0.3334,239.63,239.62,0.0001]
[1738218407721,8.36264097,239.63,239.62,0.0001]
[1738218408217,9.03972606,239.63,239.62,0.0001]
[1738218409284,13.33831606,239.63,239.62,0.0001]
[1738218410118,14.33831606,239.63,239.62,0.0001]
[1738218411020,39.24069006,239.63,239.62,0.0001]
[1738218411219,0.3334,239.53,239.52,0.03]
[1738218413004,8.36264097,239.53,239.52,0.03]
[1738218413923,0.3334,239.53,239.52,0.03]
[1738218414097,8.36264097,239.53,239.52,0.03]
[1738218419033,0.3334,239.53,239.52,0.03]
[1738218419834,8.02924097,239.55,239.52,8.05924097]
[1738218419835,0.3334,239.55,239.52,8.05924097]
[1738218420004,0.3334,239.55,239.54,8.02924097]
[1738218420529,0.3334,239.55,239.53,8.02924097]
[1738218421237,0.3334,239.55,239.53,12.20404097]
[1738218422114,0.3334,239.55,239.54,8.02924097]
[1738218422330,0.3334,239.58,239.54,12.20384097]
[1738218422515,0.3334,239.58,239.56,8.02924097]
[1738218423704,0.3334,239.58,239.55,8.02924097]
[1738218424730,0.3334,239.56,239.55,8.02924097]
[1738218429221,0.3334,239.56,239.52,12.23404097]
[1738218429740,0.3334,239.54,239.52,12.23404097]
[1738218430611,0.3334,239.54,239.52,0.03]
[1738218432112,8.36264097,239.54,239.52,0.03]
[1738218432610,8.02924097,239.53,239.52,0.03]
[1738218432808,12.20404097,239.53,239.52,0.03]
[1738218433410,12.88112606,239.53,239.52,0.03]
[1738218439253,22.03585703,239.53,239.52,0.03]
[1738218439550,46.12357994,239.53,239.52,0.03]
[1738218440348,44.99808994,239.53,239.52,0.03]
[1738218441154,12.88112606,239.53,239.52,0.03]
[1738218443467,12.20404097,239.53,239.52,0.03]
[1738218447367,44.32100485,239.53,239.52,0.03]
[1738218447760,12.20404097,239.53,239.52,0.03]
[1738218467295,8.02924097,239.53,239.52,0.03]
[1738218467699,8.36264097,239.54,239.52,0.03]
[1738218467906,8.02924097,239.53,239.52,0.03]
[1738218479135,8.36264097,239.54,239.52,0.03]
[1738218480235,0.3334,239.54,239.52,0.03]
[1738218480534,8.36264097,239.54,239.52,0.03]
[1738218480714,8.02924097,239.53,239.52,0.03]
[1738218482937,12.20404097,239.53,239.52,0.03]
[1738218487939,8.02924097,239.53,239.52,0.03]
[1738218490249,12.20404097,239.53,239.52,0.03]
[1738218493755,12.88112606,239.53,239.52,0.03]
[1738218494229,12.20404097,239.53,239.52,0.03]
[1738218499154,95.20404097,239.53,239.52,0.03]
[1738218500547,12.20404097,239.53,239.52,0.03]
[1738218500743,44.99808994,239.53,239.52,0.03]
[1738218503562,0.3334,239.44,239.43,0.03]
[1738218503767,8.36264097,239.44,239.43,0.03]
[1738218505263,8.36264097,239.44,239.41,5.17392199]
[1738218505438,8.02924097,239.42,239.41,5.17392199]
[1738218510057,8.02924097,239.43,239.41,5.17392199]
[1738218510258,8.02924097,239.43,239.41,5.20392199]
[1738218510455,8.36264097,239.44,239.41,5.20392199]
[1738218511072,8.36264097,239.46,239.42,4.1767]
[1738218511257,0.3334,239.46,239.42,4.1767]
[1738218511457,8.36264097,239.46,239.42,4.1767]
[1738218512453,8.36264097,239.48,239.42,4.1767]
[1738218512965,0.3334,239.48,239.42,12.20594097]
[1738218513464,0.3334,239.44,239.41,5.20392199]
[1738218513654,0.3334,239.42,239.41,5.20392199]
[1738218516978,0.3334,239.44,239.41,5.20392199]
[1738218522071,0.3964,239.44,239.41,5.20392199]
[1738218522383,0.3964,239.44,239.41,9.38082199]
[1738218524680,0.3964,239.44,239.41,5.20392199]
[1738218525064,0.3964,239.44,239.41,17.40996296]
[1738218527596,0.063,239.44,239.41,17.40996296]
[1738218527771,0.063,239.44,239.42,12.20594097]
[1738218527960,0.063,239.44,239.43,8.28022097]
[1738218529569,0.063,239.44,239.43,12.45672097]
[1738218530795,0.063,239.44,239.43,36.35909497]
[1738218532167,0.063,239.44,239.43,36.48458497]
[1738218532585,0.063,239.44,239.43,37.11083527]
[1738218533293,0.063,239.44,239.43,36.48458497]
[1738218538901,0.063,239.44,239.41,13.23316296]
[1738218539404,0.063,239.44,239.41,17.41006296]
[1738218544377,0.063,239.44,239.41,12.23614097]
[1738218545478,0.063,239.44,239.41,0.03]
[1738218545882,0.3334,239.43,239.41,0.03]
[1738218554110,0.063,239.44,239.41,0.03]
[1738218554515,0.063,239.44,239.41,8.05924097]
[1738218556313,0.26189595,239.45,239.41,8.05924097]
[1738218558706,0.26189595,239.45,239.41,0.03]
[1738218558897,0.063,239.44,239.41,0.03]
[1738218560303,0.26189595,239.43,239.41,0.03]
[1738218561498,0.063,239.44,239.41,0.03]
[1738218570120,0.26189595,239.43,239.41,0.03]
[1738218591833,0.063,239.44,239.41,0.03]
[1738218592333,0.26189595,239.43,239.41,0.03]
[1738218593005,8.02924097,239.42,239.41,0.03]
[1738218593204,12.46773692,239.43,239.41,0.03]
[1738218593432,4.43849595,239.43,239.41,0.03]
[1738218594338,0.26189595,239.43,239.41,0.03]
[1738218594834,0.26189595,239.43,239.41,8.05924097]
[1738218595433,0.063,239.44,239.42,8.02924097]
[1738218600538,0.063,239.44,239.42,12.20594097]
[1738218601432,0.063,239.44,239.41,12.23614097]
[1738218602744,0.26189595,239.42,239.41,0.03]
[1738218604948,0.32489595,239.44,239.41,0.03]
[1738218605121,0.063,239.44,239.43,8.28022097]
[1738218605317,0.063,239.44,239.43,32.93440003]
[1738218606442,26.14910509,239.55,239.49,0.50196]
[1738218606742,33.37838342,239.61,239.55,24.153354]
[1738218606743,25.34914245,239.61,239.55,24.153354]
[1738218606916,25.34914245,239.61,239.56,31.93161497]
[1738218607112,25.34914245,239.61,239.56,36.48238497]
[1738218607323,25.34914245,239.61,239.56,42.90928497]
[1738218608152,0.26189595,239.6,239.56,18.63044097]
[1738218608353,0.26189595,239.6,239.57,8.02924097]
[1738218608727,0.32489595,239.62,239.57,8.02924097]
[1738218608929,0.32489595,239.62,239.58,8.02924097]
[1738218609132,0.26189595,239.6,239.58,8.02924097]
[1738218609726,0.26189595,239.6,239.57,8.02924097]
[1738218609931,0.26189595,239.6,239.57,8.28022097]
[1738218611251,0.26189595,239.6,239.59,8.02924097]
[1738218612153,0.32489595,239.62,239.59,8.02924097]
[1738218612655,0.063,239.62,239.61,32.18259497]
[1738218614650,0.063,239.62,239.61,36.48148497]
[1738218616956,0.063,239.62,239.61,39.36148497]
[1738218618546,0.063,239.62,239.61,40.36148497]
[1738218618747,0.063,239.62,239.61,41.72533802]
[1738218618937,0.063,239.62,239.61,47.86663802]
[1738218624182,0.063,239.62,239.61,79.9836019]
[1738218624961,0.063,239.62,239.61,161.6836019]
[1738218625261,0.063,239.62,239.61,161.0578529]
[1738218626676,0.063,239.68,239.64,20.50196]
[1738218626846,0.063,239.68,239.67,32.18259497]
[1738218627877,0.063,239.68,239.67,32.93377745]
[1738218628081,0.063,239.69,239.68,24.278844]
[1738218628261,0.26189595,239.82,239.72,24.153354]
[1738218628448,0.26189595,239.82,239.81,8.02924097]
[1738218630254,0.26189595,239.82,239.8,8.02924097]
[1738218630570,0.26189595,239.8,239.79,8.02924097]
[1738218633364,0.26189595,239.75,239.73,8.02924097]
[1738218633571,0.26189595,239.75,239.72,8.02924097]
[1738218634873,0.26189595,239.75,239.73,8.02924097]
[1738218635054,0.26189595,239.75,239.74,8.02924097]
[1738218635252,0.26189595,239.75,239.73,8.02924097]
[1738218635773,0.26189595,239.75,239.72,8.02924097]
[1738218637076,0.26189595,239.81,239.74,8.02924097]
[1738218637371,0.26189595,239.81,239.77,8.02924097]
[1738218637676,0.26189595,239.81,239.78,8.02924097]
[1738218638075,0.26189595,239.81,239.79,8.02924097]
[1738218639083,0.26189595,239.81,239.78,8.02924097]
[1738218639385,0.26189595,239.79,239.76,8.02924097]
[1738218639685,0.26189595,239.77,239.74,12.20034097]
[1738218640987,0.26189595,239.77,239.73,8.02924097]
[1738218641189,0.26189595,239.77,239.72,12.45152097]
[1738218641888,0.26189595,239.77,239.74,0.03]
[1738218643876,0.26189595,239.77,239.74,8.05924097]
[1738218644059,0.26189595,239.77,239.74,0.03]
[1738218646287,0.26189595,239.79,239.74,12.23034097]
[1738218648702,0.26189595,239.76,239.74,12.23034097]
[1738218648879,0.26189595,239.76,239.74,0.03]
[1738218652997,0.26189595,239.78,239.74,0.03]
[1738218653499,0.26189595,239.76,239.74,0.03]
[1738218657812,0.26189595,239.76,239.74,8.05924097]
[1738218657986,0.26189595,239.76,239.74,12.23034097]
[1738218660299,0.063,239.77,239.75,8.40571097]
[1738218660613,0.063,239.77,239.76,8.28022097]
[1738218661512,0.063,239.77,239.76,12.45102097]
[1738218662194,0.063,239.77,239.76,4.42178]
[1738218662504,0.32489595,239.77,239.75,8.02924097]
[1738218662711,0.32489595,239.77,239.75,12.20014097]
[1738218663007,0.32489595,239.77,239.75,4.1709]
[1738218664212,0.32489595,239.77,239.75,12.20014097]
[1738218664213,0.063,239.77,239.75,12.20014097]
[1738218665507,0.32489595,239.77,239.75,8.02924097]
[1738218665814,0.32489595,239.77,239.74,4.2011]
[1738218667127,8.29113692,239.75,239.74,0.03]
[1738218667415,8.96822201,239.75,239.74,0.03]
[1738218667719,13.13922201,239.75,239.74,0.03]
[1738218670536,12.46213692,239.75,239.74,0.03]
[1738218670745,0.32489595,239.77,239.74,0.03]
[1738218671040,0.063,239.77,239.75,8.02924097]
[1738218672841,0.063,239.77,239.74,8.05924097]
[1738218672842,0.26189595,239.76,239.74,8.05924097]
[1738218673008,0.26189595,239.76,239.74,0.03]
[1738218675140,8.02924097,239.75,239.74,0.03]
[1738218675638,9.61554097,239.75,239.74,0.03]
[1738218675950,0.26189595,239.63,239.58,8.02924097]
[1738218678237,0.26189595,239.63,239.58,12.23314097]
[1738218678548,0.26189595,239.63,239.59,12.54814614]
[1738218680561,0.26189595,239.63,239.61,16.97252614]
[1738218680748,0.26189595,239.68,239.62,12.54814614]
[1738218680929,0.26189595,239.68,239.66,12.54814614]
[1738218682349,0.26189595,239.68,239.65,12.54814614]
[1738218682532,0.26189595,239.66,239.64,12.54814614]
[1738218686564,0.67708509,239.73,239.65,16.72084614]
[1738218686565,0.26189595,239.68,239.65,16.72084614]
[1738218686749,0.26189595,239.68,239.67,12.54814614]
[1738218686950,0.26189595,239.71,239.67,12.54814614]
[1738218687183,0.26189595,239.71,239.7,12.54814614]
[1738218688371,0.26189595,239.73,239.7,16.71994614]
[1738218688579,0.26189595,239.75,239.7,16.71994614]
[1738218688748,0.26189595,239.75,239.73,12.54814614]
[1738218690357,0.26189595,239.75,239.74,12.54814614]
[1738218691173,0.32489595,239.77,239.74,12.54814614]
[1738218691349,0.32489595,239.77,239.76,12.54814614]
[1738218693170,0.32489595,239.77,239.75,12.54814614]
[1738218695077,0.32489595,239.77,239.74,12.54814614]
[1738218696363,0.32489595,239.77,239.73,12.54814614]
[1738218697484,0.32489595,239.77,239.74,12.54814614]
[1738218697772,0.32489595,239.77,239.75,12.54814614]
[1738218698966,0.063,239.77,239.76,12.67363614]
[1738218699992,0.063,239.77,239.76,16.84443614]
[1738218700189,0.063,239.77,239.76,16.96992614]
[1738218702592,0.063,239.77,239.76,12.43804593]
[1738218703884,0.063,239.77,239.76,8.01626593]
[1738218704068,0.063,239.77,239.74,12.18726593]
[1738218706099,0.32489595,239.77,239.73,8.01626593]
[1738218706290,0.32489595,239.77,239.72,8.14175593]
[1738218706590,0.32489595,239.77,239.72,12.6599084]
[1738218706893,0.32489595,239.77,239.73,12.5344184]
[1738218707086,0.32489595,239.77,239.73,16.7056184]
[1738218709397,0.26189595,239.75,239.71,16.7059184]
[1738218709599,0.26189595,239.73,239.71,4.1715]
[1738218710689,0.26189595,239.73,239.7,16.7362184]
[1738218712097,0.26189595,239.71,239.7,0.03]
[1738218712295,13.47339944,239.71,239.7,0.03]
[1738218712481,37.25028344,239.71,239.7,0.03]
[1738218712687,38.75938344,239.71,239.7,0.03]
[1738218713193,39.88487344,239.71,239.7,0.0001]
[1738218714976,39.88487344,239.71,239.58,0.03]
[1738218714977,0.26189595,239.59,239.58,0.03]
[1738218715183,12.79631435,239.59,239.58,0.03]
[1738218716493,0.26189595,239.59,239.58,0.03]
[1738218716694,12.79631435,239.59,239.58,0.03]
[1738218717291,0.26189595,239.59,239.58,0.03]
[1738218719097,0.26189595,239.59,239.58,12.5644184]
[1738218719392,0.26189595,239.63,239.58,16.7383184]
[1738218719589,0.26189595,239.63,239.6,12.5344184]
[1738218719797,0.26189595,239.61,239.59,12.5344184]
[1738218721207,0.26189595,239.63,239.59,16.7081184]
[1738218721512,0.26189595,239.63,239.6,12.5344184]
[1738218724913,0.26189595,239.61,239.6,12.5344184]
[1738218725098,0.26189595,239.61,239.59,4.1737]
[1738218726119,0.26189595,239.61,239.58,4.2039]
[1738218726616,0.26189595,239.61,239.6,0.03]
[1738218726790,0.26189595,239.63,239.6,0.03]
[1738218727300,0.26189595,239.61,239.6,0.03]
[1738218731714,0.26189595,239.66,239.6,12.9408884]
[1738218731917,0.67708509,239.7,239.65,12.5344184]
[1738218731918,0.26189595,239.7,239.65,12.5344184]
[1738218732125,0.26189595,239.72,239.68,12.5344184]
[1738218733613,0.26189595,239.72,239.69,12.5344184]
[1738218736646,0.26189595,239.72,239.71,12.5344184]
[1738218736939,0.063,239.75,239.72,0.25098]
[1738218737112,0.063,239.75,239.74,12.5344184]
[1738218737931,0.26189595,239.74,239.71,12.5344184]
[1738218738136,0.063,239.75,239.66,147.2344184]
[1738218738137,0.26189595,239.7,239.66,147.2344184]
[1738218738430,0.26189595,239.7,239.65,16.7070184]
[1738218738638,0.26189595,239.7,239.67,12.5344184]
[1738218745059,0.32489595,239.72,239.69,12.5344184]
[1738218745665,0.26189595,239.7,239.69,12.5344184]
[1738218746564,0.26189595,239.7,239.69,8.02418454]
[1738218751672,0.26189595,239.7,239.69,8.05418454]
[1738218752549,56.23476449,239.7,239.69,0.0001]
[1738218752850,0.26189595,239.59,239.58,0.03]
[1738218753048,0.26189595,239.53,239.5,0.03]
[1738218753247,8.70126963,239.59,239.5,0.03]
[1738218753248,0.26189595,239.51,239.5,0.03]
[1738218760862,0.26189595,239.53,239.5,0.03]
[1738218763871,0.26189595,239.53,239.5,12.59277979]
[1738218764179,0.26189595,239.55,239.51,12.56277979]
[1738218764882,0.26189595,239.57,239.52,12.56277979]
[1738218765084,0.26189595,239.57,239.51,12.56277979]
[1738218765271,0.26189595,239.6,239.55,12.56277979]
[1738218765585,0.26189595,239.6,239.57,12.56277979]
[1738218766079,0.26189595,239.64,239.59,12.56277979]
[1738218766386,0.26189595,239.64,239.61,12.56277979]
[1738218766558,0.26189595,239.66,239.61,12.56277979]
[1738218767358,0.26189595,239.66,239.62,4.1732]
[1738218767559,0.26189595,239.64,239.6,16.73617979]
[1738218768581,0.26189595,239.64,239.6,4.1734]
[1738218768788,0.26189595,239.64,239.59,12.56277979]
[1738218769808,0.26189595,239.64,239.57,14.6092]
[1738218769809,0.26189595,239.62,239.57,16.73687979]
[1738218769962,0.26189595,239.62,239.57,4.1741]
[1738218770587,0.26189595,239.62,239.58,12.56277979]
[1738218771086,0.26189595,239.62,239.59,4.1737]
[1738218771987,0.26189595,239.64,239.59,16.73647979]
[1738218772184,0.26189595,239.61,239.59,16.73647979]
[1738218772390,0.26189595,239.61,239.59,4.1737]
[1738218777089,0.26189595,239.58,239.54,16.73737979]
[1738218777289,0.26189595,239.56,239.54,4.1746]
[1738218778906,0.26189595,239.53,239.5,0.03]
[1738218780011,0.26189595,239.53,239.5,4.2052]
[1738218781904,0.26189595,239.55,239.5,4.2052]
[1738218782292,0.26189595,239.53,239.5,4.2052]
[1738218783294,0.26189595,239.53,239.5,0.03]
[1738218785512,0.26189595,239.53,239.5,12.59277979]
[1738218786313,0.26189595,239.53,239.5,0.03]
[1738218786821,0.26189595,239.55,239.5,8.06735024]
[1738218788226,0.26189595,239.57,239.52,8.03735024]
[1738218788523,0.26189595,239.57,239.54,8.03735024]
[1738218788724,0.26189595,239.59,239.53,8.03735024]
[1738218789822,0.063,239.58,239.54,8.03735024]
[1738218790017,0.063,239.58,239.55,8.03735024]
[1738218790325,0.063,239.58,239.56,4.1743]
[1738218790498,0.063,239.58,239.56,12.21165024]
[1738218790699,0.063,239.58,239.56,4.1743]
[1738218792725,0.063,239.58,239.54,8.03735024]
[1738218793926,0.063,239.58,239.55,12.21175024]
[1738218796727,0.063,239.58,239.57,8.03735024]
[1738218797209,0.063,239.58,239.56,8.03735024]
[1738218798207,0.063,239.58,239.57,8.03735024]
[1738218799521,0.063,239.58,239.57,36.99080064]
[1738218800111,0.063,239.58,239.57,37.11629064]
[1738218803332,0.063,239.58,239.57,12.33694024]
[1738218803513,0.063,239.58,239.57,4.1741]
[1738218803833,0.063,239.58,239.55,4.2044]
[1738218804215,0.32489595,239.58,239.55,4.2044]
[1738218804634,0.32489595,239.58,239.55,0.03]
[1738218805535,0.26189595,239.56,239.55,0.03]
[1738218808939,0.063,239.58,239.55,0.03]
[1738218809117,0.063,239.58,239.55,8.06735024]
[1738218811726,0.063,239.58,239.56,4.1743]
[1738218811927,0.063,239.58,239.57,8.03735024]
[1738218812837,0.26189595,239.57,239.56,8.03735024]
[1738218813021,0.063,239.58,239.55,0.03]
[1738218816341,0.26189595,239.57,239.55,0.03]
[1738218822141,0.063,239.58,239.56,8.03735024]
[1738218824230,0.063,239.58,239.57,8.03735024]
[1738218827153,0.063,239.58,239.57,12.21145024]
[1738218827449,0.063,239.58,239.57,37.85439406]
[1738218830528,0.063,239.58,239.57,37.22839829]
[1738218831859,0.063,239.58,239.57,118.92839829]
[1738218832956,0.063,239.58,239.57,118.19029424]
[1738218833840,0.063,239.58,239.57,94.03694024]
[1738218834447,0.063,239.58,239.57,93.91145024]
[1738218835934,0.063,239.58,239.57,85.8741]
[1738218836138,0.063,239.58,239.57,81.7]
[1738218836552,0.32489595,239.58,239.57,81.7]
[1738218836948,0.32489595,239.58,239.55,0.03]
[1738218837939,0.32489595,239.58,239.57,0.03]
[1738218841268,8.36224619,239.58,239.57,0.03]
[1738218841467,12.53614619,239.58,239.57,0.03]
[1738218841855,0.32489595,239.58,239.57,0.03]
[1738218843645,0.063,239.58,239.57,0.03]
[1738218845378,0.063,239.58,239.57,12.24145024]
[1738218845566,0.063,239.58,239.57,12.49243024]
[1738218846070,0.063,239.58,239.57,36.52029424]
[1738218846460,0.063,239.58,239.57,37.14617354]
[1738218847669,0.32489595,239.7,239.62,23.902374]
[1738218847853,0.063,239.7,239.68,8.03735024]
[1738218848179,0.063,239.7,239.69,8.03735024]
[1738218849771,0.063,239.7,239.69,12.20935024]
[1738218850476,0.063,239.7,239.69,12.33484024]
[1738218851590,0.063,239.7,239.69,12.46033024]
[1738218852795,0.26189595,239.69,239.65,8.03735024]
[1738218853372,0.26189595,239.69,239.66,8.03735024]
[1738218855102,0.26189595,239.69,239.65,8.03735024]
[1738218860497,0.26189595,239.63,239.58,8.03735024]
[1738218860666,8.29924619,239.63,239.57,89.76735024]
[1738218860869,0.26189595,239.58,239.57,0.03]
[1738218861712,8.29924619,239.58,239.57,0.03]
[1738218862401,12.47314619,239.58,239.57,0.03]
[1738218862775,4.43579595,239.58,239.57,0.03]
[1738218866920,36.25003019,239.58,239.57,0.03]
[1738218867084,37.86823019,239.58,239.57,0.0001]
[1738218867283,38.54531528,239.58,239.57,0.0001]
[1738218867996,14.76843128,239.58,239.57,0.0001]
[1738218870092,14.09134619,239.58,239.57,0.0001]
[1738218870586,18.6104754,239.58,239.57,0.0001]
[1738218871096,19.28756049,239.58,239.57,0.0001]
[1738218878816,18.6104754,239.58,239.57,0.0001]
[1738218879023,19.28756049,239.58,239.57,0.0001]
[1738218882022,20.0,239.56,239.55,0.0001]
[1738218882209,33.23356454,239.56,239.55,0.0001]
[1738218883821,37.40786454,239.56,239.55,0.0001]
[1738218890326,37.66976049,239.56,239.55,0.0001]
[1738218890510,33.15257736,239.56,239.55,0.0001]
[1738218902332,0.26189595,239.47,239.46,0.03]
[1738218902534,0.26189595,239.47,239.46,8.06929632]
[1738218902715,0.26189595,239.51,239.47,6.4853]
[1738218903116,0.26189595,239.49,239.47,6.4853]
[1738218903317,0.26189595,239.53,239.48,8.29027632]